[Event "6th Cesme Open-A 2018"]
[Site "Cesme"]
[Date "2018.06.30"]
[Round "7.20"]
[White "Yigit, Ahmet Yasir"]
[Black "Topel, Zehra"]
[Result "0-1"]
[ECO "B51"]
[WhiteElo "1939"]
[BlackElo "2145"]
[Annotator "NA"]
[PlyCount "136"]
[EventDate "2018.06.26"]
[EventType "swiss"]
[EventCountry "TUR"]
[SourceTitle "playchess.com"]
[Source "ChessBase"]
[SourceQuality "1"]
[TimeControl "5400+30"]

1. e4 {[%emt 0:00:30]} c5 {[%emt 0:00:30]} 2. Nf3 {[%emt 0:00:30]} d6 {[%emt 0:00:30]} 3. Bb5+ {[%emt 0:00:30]} Nc6 {[%emt 0:01:30]} 4. O-O {[%emt 0:00:30]} Bd7 {[%emt 0:00:30]} 5. Re1 {[%emt 0:03:30]} a6 {[%emt 0:00:30]} 6. Bf1 {[%emt 0:00:00]} Bg4 {[%emt 0:05:30]} 7. h3 {[%emt 0:00:00]} Bh5 {[%emt 0:00:00] B51: Sicilian: Moscow Variation (3 Bb5+) without 3...Bd7} 8. c3 {[%emt 0:01:30] LiveBook: 22 Games} e6 {[%emt 0:02:00] [#]} (8... Rc8 9. g4 Bg6 10. d4 h5 11. d5 Ne5 12. Nh2 hxg4 13. hxg4 e6 14. Bf4 Nf6 15. Bg2 {0-1 (47) Caruana,F (2782)-Nakamura,H (2789) Zuerich 2014}) 9. g4 $1 {[%emt 0:05:30]} Bg6 {[%emt 0:00:30]} 10. d4 {[%emt 0:00:00]} cxd4 {[%emt 0:06:30]} 11. cxd4 {[%emt 0:00:00]} Nf6 {[%emt 0:00:00]} 12. Nc3 {[%emt 0:00:30]} d5 {[%emt 0:01:00]} 13. exd5 {[%emt 0:10:30]} Nxd5 {[%emt 0:00:30] [#]} 14. Qb3 $146 {[%emt 0:00:00]} ({Besser ist Predecessor:} 14. Nxd5 $16 Qxd5 15. Bg2 Bb4 16. Ne5 Qd6 {½-½ (35) Zelcic,R (2557)-Brkic,A (2588) Stari Mikanovci 2011}) 14... Nxc3 {[%emt 0:05:30]} 15. bxc3 {[%emt 0:00:00]} Na5 {[%emt 0:00:00]} 16. Qb2 {[%emt 0:03:30]} Be7 {[%emt 0:01:00]} 17. Ne5 {[%emt 0:01:30]} O-O {[%emt 0:00:30]} 18. Bf4 {[%emt 0:04:30]} Rc8 {[%emt 0:09:30]} 19. Bg2 {[%emt 0:03:30]} b5 {[%emt 0:01:30]} 20. a4 {[%emt 0:00:30]} b4 {[%emt 0:04:30]} 21. cxb4 {[%emt 0:03:30]} Rc2 {[%emt 0:00:30]} 22. Qb1 {[%emt 0:08:30]} Qxd4 {[%emt 0:00:30]} 23. Bg3 $1 {[%emt 0:00:30]} Rb2 {[%emt 0:02:30]} 24. Nxg6 {[%emt 0:12:30]} hxg6 {[%emt 0:08:30]} 25. Qe4 {[%emt 0:03:30]} Rxb4 {[%emt 0:02:30]} 26. Qxd4 {[%emt 0:02:30]} Rxd4 {[%emt 0:00:30]} 27. Be5 {[%emt 0:00:00]} Rd7 {[%emt 0:01:30]} 28. Bc3 {[%emt 0:05:00]} Nb3 {[%emt 0:02:30]} 29. Rab1 {[%emt 0:00:30]} Nc5 {[%emt 0:01:30]} 30. a5 {[%emt 0:00:30]} Rc8 {[%emt 0:02:30]} 31. Bf1 {[%emt 0:05:30]} Nd3 {[%emt 0:04:30]} 32. Re3 {[%emt 0:05:30]} Rxc3 {[%emt 0:02:30]} 33. Rd1 {[%emt 0:00:30]} Nc5 {[%emt 0:07:30]} 34. Rxd7 {[%emt 0:01:30]} Rxe3 {[%emt 0:00:30]} 35. Rxe7 {[%emt 0:00:30]} Ra3 {[%emt 0:00:00]} 36. Re8+ {[%emt 0:00:30]} Kh7 {[%emt 0:00:00]} 37. Rc8 {[%emt 0:00:30]} Rxa5 {[%emt 0:00:00]} 38. Rc6 {[%emt 0:00:30]} g5 {[%emt 0:00:00]} 39. f3 {[%emt 0:00:30]} Kg6 {[%emt 0:02:30]} 40. Kf2 {[%emt 0:00:30]} Kf6 {[%emt 0:00:00]} 41. Ke3 {[%emt 0:00:37]} Ke5 {[%emt 0:00:00]} 42. Bc4 {[%emt 0:00:23]} Ra3+ {[%emt 0:02:30]} 43. Kf2 {[%emt 0:01:13]} Kd4 {[%emt 0:00:30]} 44. Be2 {[%emt 0:00:06]} a5 {[%emt 0:01:30]} 45. Rc7 {[%emt 0:00:16]} Ra2 {[%emt 0:00:30]} 46. Kf1 {[%emt 0:00:25]} a4 {[%emt 0:00:30]} 47. Rxf7 {[%emt 0:00:30]} a3 $19 {[%emt 0:00:30]} 48. Ra7 {[%emt 0:00:44]} Ra1+ {[%emt 0:00:30]} 49. Kf2 {[%emt 0:00:16]} a2 {[%emt 0:00:30]} 50. Ra3 {[%emt 0:00:30]} Nb3 {[%emt 0:02:30]} 51. Rxb3 {[%emt 0:02:16]} Rb1 {[%emt 0:00:30]} 52. Rd3+ {[%emt 0:00:07]} Kc5 {[%emt 0:01:30]} 53. Ra3 {[%emt 0:00:14]} a1=Q {[%emt 0:00:30]} 54. Rxa1 {[%emt 0:00:30]} Rxa1 {[%emt 0:00:30]} 55. Bd3 {[%emt 0:00:00]} Kd4 {[%emt 0:00:00]} 56. Be4 {[%emt 0:00:00]} Ra2+ {[%emt 0:00:00]} 57. Kg3 {[%emt 0:00:23]} Ke3 {[%emt 0:00:30]} 58. h4 {[%emt 0:01:28]} Ra5 {[%emt 0:06:07]} 59. hxg5 {[%emt 0:03:01]} Rxg5 {[%emt 0:00:09]} 60. Bb7 {[%emt 0:04:26]} Rc5 {[%emt 0:01:24]} 61. f4 {[%emt 0:02:04]} Rc1 {[%emt 0:01:41]} 62. f5 {[%emt 0:00:37]} e5 {[%emt 0:00:10]} 63. g5 {[%emt 0:00:38]} e4 {[%emt 0:05:33]} 64. Kg2 {[%emt 0:02:35]} Rc5 {[%emt 0:00:19]} 65. Kg3 {[%emt 0:01:12]} Rxf5 {[%emt 0:00:33]} 66. Kg4 {[%emt 0:00:02]} Rf1 {[%emt 0:01:22]} 67. Kh5 {[%emt 0:00:17]} Rg1 {[%emt 0:00:00]} 68. Kg6 {[%emt 0:00:54]} Kf4 {[%emt 0:00:00]} 0-1

[Event "6th Cesme Open-A 2018"]
[Site "Cesme"]
[Date "2018.06.30"]
[Round "8.1"]
[White "Kovchan, Alexander"]
[Black "Rasulov, Vugar Ural Oglu"]
[Result "1-0"]
[ECO "B37"]
[WhiteElo "2572"]
[BlackElo "2516"]
[Annotator "ChessBase"]
[PlyCount "117"]
[EventDate "2018.06.26"]
[EventType "swiss"]
[EventCountry "TUR"]
[SourceTitle "playchess.com"]
[Source "ChessBase"]
[SourceQuality "1"]
[TimeControl "5400+30"]

1. c4 {[%emt 0:00:30]} c5 {[%emt 0:01:30]} 2. Nf3 {[%emt 0:00:00]} g6 {[%emt 0:00:30]} 3. d4 {[%emt 0:00:00]} cxd4 {[%emt 0:00:00]} 4. Nxd4 {[%emt 0:00:30]} Nc6 {[%emt 0:00:00]} 5. e4 {[%emt 0:00:30]} Nf6 {[%emt 0:00:30]} 6. Nc3 {[%emt 0:00:30]} d6 {[%emt 0:00:30]} 7. Nc2 {[%emt 0:02:30]} Bg7 {[%emt 0:00:30]} 8. Be2 {[%emt 0:00:30]} O-O {[%emt 0:01:30]} 9. O-O {[%emt 0:00:30]} Nd7 {[%emt 0:00:00]} 10. Bd2 {[%emt 0:00:30]} Nc5 {[%emt 0:00:00]} 11. b4 {[%emt 0:00:00]} Ne6 {[%emt 0:01:30]} 12. Rc1 {[%emt 0:04:00]} Bd7 {[%emt 0:00:30]} 13. Nd5 {[%emt 0:04:30]} Ncd4 {[%emt 0:04:30]} 14. Nxd4 {[%emt 0:00:30]} Nxd4 {[%emt 0:00:30]} 15. Bg5 {[%emt 0:02:30]} Re8 {[%emt 0:05:30]} 16. Bd3 {[%emt 0:06:30]} Bc6 {[%emt 0:13:30]} 17. Qd2 {[%emt 0:07:30]} Rc8 {[%emt 0:00:00]} 18. Rfe1 {[%emt 0:07:30]} b6 {[%emt 0:01:00]} 19. h3 {[%emt 0:10:30]} Bb7 {[%emt 0:04:30]} 20. Bh4 {[%emt 0:02:30]} f6 {[%emt 0:03:30]} 21. f3 {[%emt 0:08:30]} e6 {[%emt 0:01:30]} 22. Nc3 {[%emt 0:00:30]} Nc6 {[%emt 0:00:30]} 23. Bf1 {[%emt 0:10:30]} Qe7 {[%emt 0:20:30]} 24. a3 {[%emt 0:00:30]} Red8 {[%emt 0:04:30]} 25. Nb5 {[%emt 0:00:30]} Rd7 {[%emt 0:03:30]} 26. Bg3 {[%emt 0:00:30]} Bf8 {[%emt 0:02:30]} 27. Bf2 {[%emt 0:02:30]} Qf7 {[%emt 0:01:30]} 28. Rcd1 {[%emt 0:01:30]} Rcd8 {[%emt 0:02:30]} 29. Qc2 {[%emt 0:00:00]} Kg7 {[%emt 0:00:30]} 30. Qa4 {[%emt 0:01:00]} g5 {[%emt 0:02:30]} 31. Rd2 {[%emt 0:00:30]} h5 {[%emt 0:00:30]} 32. Qb3 {[%emt 0:03:30]} Ba8 {[%emt 0:00:30]} 33. Red1 {[%emt 0:00:30]} Ne5 {[%emt 0:05:30]} 34. Nd4 {[%emt 0:01:30]} Kh8 {[%emt 0:00:30]} 35. Qe3 {[%emt 0:01:30]} Qg8 {[%emt 0:02:34]} 36. Kh1 {[%emt 0:01:30]} Kh7 {[%emt 0:01:10]} 37. Nb5 {[%emt 0:00:00]} Bc6 {[%emt 0:01:04]} 38. Nd4 {[%emt 0:02:48]} Ba8 {[%emt 0:00:07]} 39. Bg3 {[%emt 0:00:51]} Bh6 {[%emt 0:00:51]} 40. Nb5 {[%emt 0:00:18]} Qf8 {[%emt 0:01:58]} 41. Bh2 {[%emt 0:03:35]} Qe7 {[%emt 0:00:54]} 42. Rd4 {[%emt 0:01:32]} Bc6 {[%emt 0:01:22]} 43. a4 {[%emt 0:01:03]} g4 {[%emt 0:00:30]} 44. Qf2 {[%emt 0:00:30]} gxf3 {[%emt 0:00:30]} 45. gxf3 {[%emt 0:00:01]} f5 {[%emt 0:03:32]} 46. Bg2 {[%emt 0:03:43]} fxe4 {[%emt 0:00:15]} 47. fxe4 {[%emt 0:00:00]} a6 {[%emt 0:04:19]} 48. Nxd6 {[%emt 0:01:20]} Bxa4 {[%emt 0:01:32]} 49. Bxe5 {[%emt 0:02:27]} Bxd1 {[%emt 0:00:05]} 50. Bf6 {[%emt 0:00:24]} Qf8 {[%emt 0:02:59]} 51. e5 {[%emt 0:00:30]} Ba4 {[%emt 0:00:00]} 52. Rh4 {[%emt 0:03:15]} Kg8 {[%emt 0:01:00]} 53. Rxh5 {[%emt 0:00:45]} Bd1 {[%emt 0:00:35]} 54. Rh4 {[%emt 0:02:38]} Bg7 {[%emt 0:01:53]} 55. c5 {[%emt 0:03:23]} bxc5 {[%emt 0:00:30]} 56. bxc5 {[%emt 0:00:00]} Rb8 {[%emt 0:02:10]} 57. Be4 {[%emt 0:00:00]} Bb3 {[%emt 0:01:07]} 58. Qg3 {[%emt 0:00:13]} Bd5 {[%emt 0:00:27]} 59. Rh8+ {[%emt 0:00:34]} 1-0

[Event "6th Cesme Open-A 2018"]
[Site "Cesme"]
[Date "2018.06.30"]
[Round "8.2"]
[White "Solodovnichenko, Yuri"]
[Black "Gadimbayli, Abdulla Azar"]
[Result "1/2-1/2"]
[ECO "C18"]
[WhiteElo "2531"]
[BlackElo "2420"]
[Annotator "ChessBase"]
[PlyCount "106"]
[EventDate "2018.06.26"]
[EventType "swiss"]
[EventCountry "TUR"]
[SourceTitle "playchess.com"]
[Source "ChessBase"]
[SourceQuality "1"]
[TimeControl "5400+30"]

1. e4 {[%emt 0:00:30]} e6 {[%emt 0:08:30]} 2. d4 {[%emt 0:00:30]} d5 {[%emt 0:00:30]} 3. Nc3 {[%emt 0:00:00]} Bb4 {[%emt 0:00:00]} 4. e5 {[%emt 0:00:00]} c5 {[%emt 0:00:00]} 5. a3 {[%emt 0:00:00]} Bxc3+ {[%emt 0:00:00]} 6. bxc3 {[%emt 0:00:00]} Ne7 {[%emt 0:00:00]} 7. h4 {[%emt 0:01:30]} Qc7 {[%emt 0:00:00]} 8. Nf3 {[%emt 0:00:30]} Bd7 {[%emt 0:09:00]} 9. h5 {[%emt 0:01:30]} h6 {[%emt 0:01:30]} 10. a4 {[%emt 0:16:30]} Nbc6 {[%emt 0:06:30]} 11. Ba3 {[%emt 0:07:30]} cxd4 {[%emt 0:10:30]} 12. cxd4 {[%emt 0:00:30]} Qa5+ {[%emt 0:00:30]} 13. Qd2 {[%emt 0:01:30]} Qxd2+ {[%emt 0:02:30]} 14. Kxd2 {[%emt 0:00:00]} Nf5 {[%emt 0:00:30]} 15. Kd3 {[%emt 0:05:00]} Na5 {[%emt 0:07:30]} 16. g4 {[%emt 0:28:30]} Ne7 {[%emt 0:00:00]} 17. Ke3 {[%emt 0:02:30]} Rc8 {[%emt 0:12:00]} 18. Bd3 {[%emt 0:00:30]} Nc4+ {[%emt 0:04:30]} 19. Ke2 {[%emt 0:00:00]} b6 {[%emt 0:01:30]} 20. Rhb1 {[%emt 0:01:00]} Nxa3 {[%emt 0:05:30]} 21. Rxa3 {[%emt 0:00:30]} Nc6 {[%emt 0:00:00]} 22. Ba6 {[%emt 0:01:30]} Rc7 {[%emt 0:04:00]} 23. Rbb3 {[%emt 0:08:30]} Kd8 {[%emt 0:12:12]} 24. Ke3 {[%emt 0:00:30]} Bc8 {[%emt 0:01:02]} 25. Bd3 {[%emt 0:01:30]} Na5 {[%emt 0:00:57]} 26. Rb4 {[%emt 0:00:00]} Ke7 {[%emt 0:01:16]} 27. Nd2 {[%emt 0:00:00]} Bd7 {[%emt 0:03:51]} 28. c4 {[%emt 0:04:03]} dxc4 {[%emt 0:03:44]} 29. Nxc4 {[%emt 0:01:20]} Nxc4+ {[%emt 0:00:36]} 30. Rxc4 {[%emt 0:00:03]} Rxc4 {[%emt 0:00:21]} 31. Bxc4 {[%emt 0:00:30]} Rc8 {[%emt 0:00:00]} 32. Ba6 {[%emt 0:05:21]} Rc1 {[%emt 0:00:41]} 33. a5 {[%emt 0:00:13]} Re1+ {[%emt 0:00:30]} 34. Kf4 {[%emt 0:05:21]} Bc6 {[%emt 0:03:26]} 35. f3 {[%emt 0:00:49]} g5+ {[%emt 0:00:51]} 36. hxg6 {[%emt 0:00:41]} fxg6 {[%emt 0:00:02]} 37. axb6 {[%emt 0:00:45]} axb6 {[%emt 0:00:05]} 38. Rb3 {[%emt 0:02:25]} Bd5 {[%emt 0:01:21]} 39. Rxb6 {[%emt 0:00:30]} g5+ {[%emt 0:00:30]} 40. Kg3 {[%emt 0:00:00]} Re3 {[%emt 0:00:00]} 41. Bb7 {[%emt 0:01:19]} Rxf3+ {[%emt 0:00:00]} 42. Kh2 {[%emt 0:00:00]} Rf2+ {[%emt 0:00:00]} 43. Kg3 {[%emt 0:00:51]} Rf3+ {[%emt 0:00:00]} 44. Kh2 {[%emt 0:00:00]} Rf4 {[%emt 0:02:43]} 45. Bxd5 {[%emt 0:00:07]} exd5 {[%emt 0:00:00]} 46. Rxh6 {[%emt 0:05:32]} Rxg4 {[%emt 0:00:15]} 47. Rg6 {[%emt 0:01:18]} Rxd4 {[%emt 0:01:12]} 48. Rxg5 {[%emt 0:00:30]} Re4 {[%emt 0:00:00]} 49. Kg3 {[%emt 0:00:00]} Kd7 {[%emt 0:00:45]} 50. Kf3 {[%emt 0:00:26]} Kc6 {[%emt 0:00:30]} 51. Rg6+ {[%emt 0:01:16]} Kc5 {[%emt 0:00:30]} 52. Re6 {[%emt 0:00:22]} Kd4 {[%emt 0:00:01]} 53. Re8 {[%emt 0:00:30]} Rxe5 {[%emt 0:00:00]} 1/2-1/2

[Event "6th Cesme Open-A 2018"]
[Site "Cesme"]
[Date "2018.06.30"]
[Round "8.4"]
[White "Sadikhov, Ulvi Ramil Oglu"]
[Black "Sumets, Andrey"]
[Result "1/2-1/2"]
[ECO "B10"]
[WhiteElo "2484"]
[BlackElo "2575"]
[Annotator "ChessBase"]
[PlyCount "59"]
[EventDate "2018.06.26"]
[EventType "swiss"]
[EventCountry "TUR"]
[SourceTitle "playchess.com"]
[Source "ChessBase"]
[SourceQuality "1"]
[TimeControl "5400+30"]

1. e4 {[%emt 0:00:30]} c6 {[%emt 0:02:30]} 2. c4 {[%emt 0:01:30]} e5 {[%emt 0:01:30]} 3. Nf3 {[%emt 0:00:00]} d6 {[%emt 0:00:00]} 4. Nc3 {[%emt 0:01:00]} c5 {[%emt 0:09:00]} 5. g3 {[%emt 0:05:30]} Nc6 {[%emt 0:00:30]} 6. Bg2 {[%emt 0:00:30]} g6 {[%emt 0:00:00]} 7. d3 {[%emt 0:05:30]} h5 {[%emt 0:03:00]} 8. Nd5 {[%emt 0:02:30]} Bh6 {[%emt 0:05:30]} 9. Bxh6 {[%emt 0:03:30]} Nxh6 {[%emt 0:01:30]} 10. Qd2 {[%emt 0:02:30]} a5 {[%emt 0:09:30]} 11. a3 {[%emt 0:00:30]} Ng8 {[%emt 0:04:30]} 12. O-O {[%emt 0:01:30]} Nf6 {[%emt 0:03:30]} 13. b4 {[%emt 0:22:30]} axb4 {[%emt 0:04:30]} 14. axb4 {[%emt 0:04:30]} Rxa1 {[%emt 0:00:00]} 15. Rxa1 {[%emt 0:00:30]} Nxd5 {[%emt 0:06:00]} 16. cxd5 {[%emt 0:17:30]} Nxb4 {[%emt 0:02:30]} 17. Ra8 {[%emt 0:00:30]} O-O {[%emt 0:00:30]} 18. Bh3 {[%emt 0:00:30]} Qf6 {[%emt 0:00:00]} 19. Ng5 {[%emt 0:00:00]} Nxd3 {[%emt 0:04:00]} 20. Rxc8 {[%emt 0:02:00]} Rxc8 {[%emt 0:00:30]} 21. Bxc8 {[%emt 0:00:00]} c4 {[%emt 0:04:30]} 22. h4 {[%emt 0:08:01]} Qe7 {[%emt 0:01:30]} 23. Qa5 {[%emt 0:03:13]} Qf6 {[%emt 0:02:30]} 24. f3 {[%emt 0:00:46]} Qe7 {[%emt 0:01:30]} 25. Kf1 {[%emt 0:00:49]} b5 {[%emt 0:02:30]} 26. Qa8 {[%emt 0:01:52]} Kg7 {[%emt 0:02:30]} 27. Be6 {[%emt 0:05:06]} fxe6 {[%emt 0:00:30]} 28. Nxe6+ {[%emt 0:00:30]} Kh7 {[%emt 0:00:30]} 29. Ng5+ {[%emt 0:00:37]} Kg7 {[%emt 0:00:30]} 30. Ne6+ {[%emt 0:00:00]} 1/2-1/2

[Event "6th Cesme Open-A 2018"]
[Site "Cesme"]
[Date "2018.06.30"]
[Round "8.5"]
[White "Barsov, Alexei"]
[Black "Yilmazyerli, Mert"]
[Result "1/2-1/2"]
[ECO "A70"]
[WhiteElo "2371"]
[BlackElo "2491"]
[Annotator "ChessBase"]
[PlyCount "26"]
[EventDate "2018.06.26"]
[EventType "swiss"]
[EventCountry "TUR"]
[SourceTitle "playchess.com"]
[Source "ChessBase"]
[SourceQuality "1"]
[TimeControl "5400+30"]

1. d4 {[%emt 0:02:30]} Nf6 {[%emt 0:02:30]} 2. c4 {[%emt 0:00:30]} c5 {[%emt 0:00:30]} 3. d5 {[%emt 0:00:30]} e6 {[%emt 0:00:00]} 4. Nc3 {[%emt 0:00:30]} exd5 {[%emt 0:00:00]} 5. cxd5 {[%emt 0:00:00]} d6 {[%emt 0:00:00]} 6. e4 {[%emt 0:00:00]} g6 {[%emt 0:00:00]} 7. Bd3 {[%emt 0:00:00]} Bg7 {[%emt 0:00:30]} 8. h3 {[%emt 0:00:00]} O-O {[%emt 0:00:00]} 9. Nf3 {[%emt 0:00:00]} b5 {[%emt 0:00:00]} 10. Nxb5 {[%emt 0:00:00]} Re8 {[%emt 0:00:00]} 11. O-O {[%emt 0:10:30]} Nxe4 {[%emt 0:00:00]} 12. Re1 {[%emt 0:01:30]} a6 {[%emt 0:01:30]} 13. Na3 {[%emt 0:02:30]} Nf6 {[%emt 0:00:30]} 1/2-1/2

[Event "6th Cesme Open-A 2018"]
[Site "Cesme"]
[Date "2018.06.30"]
[Round "8.6"]
[White "Malakhatko, Vadim"]
[Black "Bashirli, Nail Qoshqar"]
[Result "1-0"]
[ECO "E10"]
[WhiteElo "2499"]
[BlackElo "2385"]
[Annotator "ChessBase"]
[PlyCount "83"]
[EventDate "2018.06.26"]
[EventType "swiss"]
[EventCountry "TUR"]
[SourceTitle "playchess.com"]
[Source "ChessBase"]
[SourceQuality "1"]
[TimeControl "5400+30"]

1. d4 {[%emt 0:00:30]} Nf6 {[%emt 0:08:30]} 2. c4 {[%emt 0:00:30]} e6 {[%emt 0:00:00]} 3. Nf3 {[%emt 0:00:00]} c5 {[%emt 0:02:00]} 4. d5 {[%emt 0:00:00]} b5 {[%emt 0:00:00]} 5. dxe6 {[%emt 0:03:30]} fxe6 {[%emt 0:00:00]} 6. cxb5 {[%emt 0:00:30]} d5 {[%emt 0:00:00]} 7. g3 {[%emt 0:00:00]} Bd6 {[%emt 0:00:00]} 8. Bg2 {[%emt 0:00:00]} O-O {[%emt 0:00:30]} 9. O-O {[%emt 0:00:30]} a6 {[%emt 0:00:30]} 10. bxa6 {[%emt 0:00:00]} Nc6 {[%emt 0:00:30]} 11. b3 {[%emt 0:00:00]} Bxa6 {[%emt 0:05:30]} 12. Bb2 {[%emt 0:02:30]} Qe7 {[%emt 0:02:30]} 13. Re1 {[%emt 0:03:30]} Rab8 {[%emt 0:13:30]} 14. Nbd2 {[%emt 0:01:30]} e5 {[%emt 0:00:30]} 15. e4 {[%emt 0:00:30]} Nb4 {[%emt 0:08:30]} 16. exd5 {[%emt 0:01:30]} Nd3 {[%emt 0:02:30]} 17. Qc2 {[%emt 0:00:30]} Nxe1 {[%emt 0:01:30]} 18. Rxe1 {[%emt 0:01:30]} Nxd5 {[%emt 0:01:30]} 19. a3 {[%emt 0:30:30]} Nf6 {[%emt 0:06:30]} 20. Nxe5 {[%emt 0:03:30]} Qc7 {[%emt 0:07:30]} 21. Ndc4 {[%emt 0:06:30]} Rbe8 {[%emt 0:03:30]} 22. f4 {[%emt 0:12:30]} Bxc4 {[%emt 0:04:30]} 23. Qxc4+ {[%emt 0:02:30]} Kh8 {[%emt 0:00:00]} 24. Bc3 {[%emt 0:02:30]} Re7 {[%emt 0:02:00]} 25. Rd1 {[%emt 0:05:30]} Bxe5 {[%emt 0:06:30]} 26. fxe5 {[%emt 0:04:26]} Nd7 {[%emt 0:02:30]} 27. e6 {[%emt 0:00:08]} Ne5 {[%emt 0:01:30]} 28. Qd5 {[%emt 0:00:05]} Ng4 {[%emt 0:01:30]} 29. Qe4 {[%emt 0:09:22]} Nf6 {[%emt 0:04:31]} 30. Qc4 {[%emt 0:00:16]} Qc8 {[%emt 0:04:37]} 31. Bh3 {[%emt 0:01:19]} Qe8 {[%emt 0:00:45]} 32. Rf1 {[%emt 0:01:40]} Qh5 {[%emt 0:00:37]} 33. Bf5 {[%emt 0:00:41]} Qg5 {[%emt 0:02:07]} 34. Kg2 {[%emt 0:02:51]} Kg8 {[%emt 0:05:07]} 35. h4 {[%emt 0:00:20]} Qe3 {[%emt 0:01:14]} 36. Rf3 {[%emt 0:01:50]} Qc1 {[%emt 0:01:27]} 37. Qxc5 {[%emt 0:01:12]} Rfe8 {[%emt 0:00:15]} 38. Rf1 {[%emt 0:01:17]} Qh6 {[%emt 0:00:22]} 39. Qd4 {[%emt 0:00:35]} Qh5 {[%emt 0:01:44]} 40. g4 {[%emt 0:01:14]} Nxg4 {[%emt 0:02:36]} 41. Qxg4 {[%emt 0:00:18]} Qh6 {[%emt 0:00:25]} 42. Qg5 {[%emt 0:00:21]} 1-0

[Event "6th Cesme Open-A 2018"]
[Site "Cesme"]
[Date "2018.06.30"]
[Round "8.7"]
[White "Sari, Yasin"]
[Black "Oleksienko, Mikhailo"]
[Result "0-1"]
[ECO "E14"]
[WhiteElo "2330"]
[BlackElo "2604"]
[Annotator "ChessBase"]
[PlyCount "106"]
[EventDate "2018.06.26"]
[EventType "swiss"]
[EventCountry "TUR"]
[SourceTitle "playchess.com"]
[Source "ChessBase"]
[SourceQuality "1"]
[TimeControl "5400+30"]

1. Nf3 {[%emt 0:00:30]} Nf6 {[%emt 0:00:30]} 2. c4 {[%emt 0:00:00]} e6 {[%emt 0:00:30]} 3. d4 {[%emt 0:00:00]} b6 {[%emt 0:00:30]} 4. e3 {[%emt 0:00:30]} Bb4+ {[%emt 0:00:30]} 5. Bd2 {[%emt 0:01:30]} Be7 {[%emt 0:02:30]} 6. Bd3 {[%emt 0:01:30]} Bb7 {[%emt 0:00:00]} 7. Nc3 {[%emt 0:01:30]} d5 {[%emt 0:00:00]} 8. cxd5 {[%emt 0:03:30]} exd5 {[%emt 0:00:30]} 9. Qc2 {[%emt 0:02:30]} O-O {[%emt 0:01:30]} 10. g4 {[%emt 0:06:30]} Na6 {[%emt 0:03:30]} 11. a3 {[%emt 0:02:30]} c5 {[%emt 0:00:30]} 12. g5 {[%emt 0:03:30]} Ne4 {[%emt 0:00:30]} 13. Nxe4 {[%emt 0:02:30]} dxe4 {[%emt 0:00:00]} 14. Bxe4 {[%emt 0:00:30]} Bxe4 {[%emt 0:00:00]} 15. Qxe4 {[%emt 0:00:30]} cxd4 {[%emt 0:00:30]} 16. Qxd4 {[%emt 0:00:30]} Bxg5 {[%emt 0:00:30]} 17. Qxd8 {[%emt 0:13:30]} Bxd8 {[%emt 0:00:30]} 18. Bc3 {[%emt 0:02:30]} Nc5 {[%emt 0:00:30]} 19. Ke2 {[%emt 0:01:30]} Be7 {[%emt 0:00:30]} 20. b4 {[%emt 0:11:30]} Ne4 {[%emt 0:02:30]} 21. Bd4 {[%emt 0:00:30]} Rfc8 {[%emt 0:00:00]} 22. Rhc1 {[%emt 0:01:30]} f6 {[%emt 0:00:00]} 23. Nd2 {[%emt 0:02:30]} Nd6 {[%emt 0:04:30]} 24. Kd3 {[%emt 0:04:30]} Kf7 {[%emt 0:00:30]} 25. Nb3 {[%emt 0:04:30]} f5 {[%emt 0:04:30]} 26. f3 {[%emt 0:02:30]} g6 {[%emt 0:03:30]} 27. a4 {[%emt 0:04:30]} Rab8 {[%emt 0:04:30]} 28. b5 {[%emt 0:07:12]} Rxc1 {[%emt 0:06:30]} 29. Rxc1 {[%emt 0:00:57]} Rc8 {[%emt 0:00:00]} 30. Rxc8 {[%emt 0:07:02]} Nxc8 {[%emt 0:00:00]} 31. e4 {[%emt 0:01:35]} Ke6 {[%emt 0:03:30]} 32. Nd2 {[%emt 0:01:21]} Nd6 {[%emt 0:04:30]} 33. Nc4 {[%emt 0:01:05]} fxe4+ {[%emt 0:05:30]} 34. fxe4 {[%emt 0:00:30]} Nxc4 {[%emt 0:00:30]} 35. Kxc4 {[%emt 0:00:30]} Bd6 {[%emt 0:00:00]} 36. h3 {[%emt 0:03:01]} g5 {[%emt 0:14:00]} 37. a5 {[%emt 0:00:44]} Bc7 {[%emt 0:00:30]} 38. Kd3 {[%emt 0:02:36]} h5 {[%emt 0:05:30]} 39. Ke2 {[%emt 0:00:31]} Be5 {[%emt 0:02:30]} 40. Be3 {[%emt 0:00:36]} bxa5 {[%emt 0:00:00]} 41. Bxa7 {[%emt 0:02:01]} a4 {[%emt 0:00:00]} 42. Bc5 {[%emt 0:00:15]} Kd7 {[%emt 0:02:30]} 43. Kd3 {[%emt 0:00:26]} g4 {[%emt 0:00:30]} 44. hxg4 {[%emt 0:00:31]} hxg4 {[%emt 0:01:30]} 45. Ke2 {[%emt 0:03:31]} Ke6 {[%emt 0:01:30]} 46. Kd3 {[%emt 0:00:32]} Bd6 {[%emt 0:06:30]} 47. Be3 {[%emt 0:00:30]} a3 {[%emt 0:00:30]} 48. b6 {[%emt 0:00:24]} a2 {[%emt 0:01:30]} 49. Bd4 {[%emt 0:00:03]} g3 {[%emt 0:00:30]} 50. Ke2 {[%emt 0:01:22]} g2 {[%emt 0:00:00]} 51. Kf2 {[%emt 0:00:14]} Bc5 {[%emt 0:00:00]} 52. Bxc5 {[%emt 0:00:54]} a1=Q {[%emt 0:00:30]} 53. Kxg2 {[%emt 0:00:00]} Qe5 {[%emt 0:00:30]} 0-1